[Event "MCC Labor Day Schev 2024"]
[Site "New York"]
[Date "2024.09.01"]
[Round "6.3"]
[White "Aravindakshan, Sahana"]
[Black "Rohde, Michael"]
[Result "0-1"]
[ECO "E95"]
[WhiteElo "2003"]
[BlackElo "2280"]
[Annotator "RC"]
[PlyCount "86"]
[EventDate "2024.08.28"]
[EventType "schev"]
[EventCountry "USA"]
[SourceTitle "playchess.com"]
[Source "ChessBase"]
[SourceQuality "1"]
[TimeControl "5400+30"]

1. d4 {[%emt 0:00:01]} Nf6 {[%emt 0:01:39]} 2. c4 {[%emt 0:00:03]} d6 {[%emt 0:00:06]} 3. Nc3 {[%emt 0:00:04]} Nbd7 {[%emt 0:00:04]} 4. e4 {[%emt 0:00:15]} e5 {[%emt 0:00:04]} 5. Nf3 {[%emt 0:00:03]} g6 {[%emt 0:00:10]} 6. Be2 {[%emt 0:00:04]} Bg7 {[%emt 0:00:05]} 7. O-O {[%emt 0:00:05]} O-O {[%emt 0:00:04]} 8. Re1 {[%emt 0:00:11]} c6 {[%emt 0:00:29]} 9. Bf1 {[%emt 0:00:23]} Qc7 {[%emt 0:02:32]} 10. a3 {[%emt 0:17:17]} exd4 {[%emt 0:02:58]} 11. Nxd4 {[%emt 0:00:32]} a5 {[%emt 0:00:57]} 12. Rb1 {[%emt 0:07:29]} Nc5 {[%emt 0:03:14]} 13. b4 {[%emt 0:03:30]} axb4 {[%emt 0:00:48]} 14. axb4 {[%emt 0:01:13]} Ne6 {[%emt 0:00:18]} 15. Nde2 {[%emt 0:13:28]} Ng4 {[%emt 0:03:08]} 16. h3 {[%emt 0:12:01]} Ne5 {[%emt 0:01:37]} 17. Nf4 {[%emt 0:02:44]} Nxf4 {[%emt 0:07:31]} 18. Bxf4 {[%emt 0:00:06]} Ra3 {[%emt 0:00:47]} 19. Na4 {[%emt 0:13:30]} f5 {[%emt 0:18:18]} 20. Bc1 {[%emt 0:02:13]} Rxa4 {[%emt 0:00:59]} 21. Qxa4 {[%emt 0:00:02]} fxe4 {[%emt 0:02:04]} 22. Be3 {[%emt 0:05:57]} Bxh3 {[%emt 0:14:43]} 23. Qa5 {[%emt 0:01:02]} Qb8 {[%emt 0:08:02]} 24. Ba7 {[%emt 0:02:05]} Qe8 {[%emt 0:00:48]} 25. Be3 {[%emt 0:08:53]} Bf5 {[%emt 0:08:00]} 26. Qc7 {[%emt 0:01:25]} Ng4 {[%emt 0:00:27]} 27. Qxd6 {[%emt 0:01:25]} Be5 {[%emt 0:01:42]} 28. Qd2 {[%emt 0:00:47]} Bh2+ {[%emt 0:01:50]} 29. Kh1 {[%emt 0:00:01]} g5 {[%emt 0:02:16]} 30. c5 {[%emt 0:03:10]} Qh5 {[%emt 0:03:40]} 31. Bc4+ {[%emt 0:00:27]} Kg7 {[%emt 0:01:00]} 32. Bd4+ {[%emt 0:02:38]} Kg6 {[%emt 0:12:44]} 33. Qd1 {[%emt 0:03:12]} Bf4+ {[%emt 0:02:38]} 34. Kg1 {[%emt 0:00:04]} Qh2+ {[%emt 0:00:14]} 35. Kf1 {[%emt 0:00:03]} Qh1+ {[%emt 0:00:24]} 36. Ke2 {[%emt 0:00:03]} Qxg2 {[%emt 0:00:06]} 37. Rg1 {[%emt 0:01:30]} Qf3+ {[%emt 0:00:34]} 38. Ke1 {[%emt 0:00:19]} Rd8 {[%emt 0:00:43]} 39. Qxf3 {[%emt 0:00:52]} exf3 {[%emt 0:00:11]} 40. Rd1 {[%emt 0:00:49]} Re8+ {[%emt 0:00:14]} 41. Be3 {[%emt 0:00:29]} Bxe3 {[%emt 0:00:31]} 42. Rxg4 {[%emt 0:00:32]} Bf4+ {[%emt 0:00:27]} 43. Kf1 Bxg4 {[%emt 0:00:09]} 0-1

[Event "MCC Labor Day Schev 2024"]
[Site "New York"]
[Date "2024.09.01"]
[Round "6.4"]
[White "Podavonov, Alisher"]
[Black "Gaw, Chloe"]
[Result "1-0"]
[ECO "D27"]
[WhiteElo "2140"]
[BlackElo "1981"]
[Annotator "TA"]
[PlyCount "91"]
[EventDate "2024.08.28"]
[EventType "schev"]
[EventCountry "USA"]
[SourceTitle "playchess.com"]
[Source "ChessBase"]
[SourceQuality "1"]
[TimeControl "5400+30"]

{[%evp 16,91,43,34,51,31,66,70,75,68,81,45,57,62,79,85,96,93,285,291,243,244,326,330,373,389,382,368,450,439,452,451,462,449,563,579,522,534,658,570,638,603,609,606,588,600,595,588,675,639,664,664,737,735,687,673,651,630,710,704,716,677,778,787,792,786,874,868,1126,1130,1422,1422,1907,1921,1620,1580,2341,2168]} 1. d4 {[%emt 0:13:42]} d5 {[%emt 0:00:02]} 2. Nf3 {[%emt 0:00:07]} Nf6 {[%emt 0:00:05]} 3. c4 {[%emt 0:00:07]} dxc4 {[%emt 0:00:04]} 4. e3 {[%emt 0:00:27]} e6 {[%emt 0:00:05]} 5. Bxc4 {[%emt 0:00:05]} c5 {[%emt 0:00:03]} 6. O-O {[%emt 0:00:10]} a6 {[%emt 0:00:03]} 7. dxc5 {[%emt 0:00:33]} Bxc5 {[%emt 0:00:10]} 8. Qxd8+ {[%emt 0:00:16]} Kxd8 {[%emt 0:00:02]} 9. Nbd2 {[%emt 0:01:32]} Nc6 {[%emt 0:02:28]} 10. b3 {[%emt 0:02:10]} b5 {[%emt 0:02:59]} 11. Be2 {[%emt 0:00:18]} Bb7 {[%emt 0:00:11] White is slightly better.} 12. Bb2 {[%emt 0:02:08]} Ke7 {[%emt 0:03:43]} 13. Rac1 {[%emt 0:00:50]} Bd6 {[%emt 0:02:48]} 14. a4 {[%emt 0:00:31]} b4 {[%emt 0:01:02]} 15. Nc4 {[%emt 0:00:27]} Rhd8 {[%emt 0:04:39]} 16. Nd4 {[%emt 0:05:30] Nxc6+ is the strong threat.} Ne5 {[%emt 0:23:53] [#] Loses the game.} (16... Ne4 $16) 17. Na5 $1 $18 {[%emt 0:07:48]} Bd5 {[%emt 0:14:24]} 18. f4 {[%emt 0:06:19]} Neg4 {[%emt 0:02:31][%cal Be5g4,Bg4h6,Bh6f5][%mdl 32]} 19. Ndc6+ {[%emt 0:02:46]} Kd7 {[%emt 0:02:45][%cal Og4e3]} 20. Nxd8 {[%emt 0:00:35]} Kxd8 {[%emt 0:04:55]} 21. Bd4 {[%emt 0:03:20]} Nh6 {[%emt 0:06:03]} 22. Bxf6+ {[%emt 0:10:36] White is clearly winning.} gxf6 {[%emt 0:00:07]} 23. Bf3 {[%emt 0:00:12]} Bxf3 {[%emt 0:02:26]} 24. gxf3 {[%emt 0:00:21]} Ke7 {[%emt 0:01:09]} 25. Rfd1 {[%emt 0:01:30]} Nf5 {[%emt 0:01:58]} 26. Kf2 {[%emt 0:01:24]} e5 {[%emt 0:02:24]} 27. fxe5 {[%emt 0:01:11]} fxe5 {[%emt 0:00:38]} 28. Nb7 {[%emt 0:00:57]} Ra7 {[%emt 0:01:31]} 29. Nxd6 {[%emt 0:00:52]} Nxd6 {[%emt 0:00:03][%mdl 4096] Endgame. KRR-KRN} 30. Rc6 {[%emt 0:00:46]} Nf5 {[%emt 0:00:56]} 31. Ke2 {[%emt 0:02:25]} f6 {[%emt 0:01:08]} 32. Rg1 {[%emt 0:01:00]} Kf7 {[%emt 0:00:22]} 33. Rgc1 {[%emt 0:00:14]} Ne7 {[%emt 0:01:28]} 34. Rc7 {[%emt 0:00:55]} Ra8 {[%emt 0:00:05]} 35. R1c6 {[%emt 0:01:53]} a5 {[%emt 0:01:09]} 36. Rd6 {[%emt 0:01:41]} Rg8 {[%emt 0:00:58]} 37. Kd3 {[%emt 0:01:47]} Re8 {[%emt 0:00:43]} 38. e4 {[%emt 0:02:14]} Kg6 {[%emt 0:00:40]} 39. Re6 {[%emt 0:01:50]} Rd8+ {[%emt 0:01:20]} 40. Ke2 {[%emt 0:00:21]} Ng8 {[%emt 0:01:04]} 41. Ra6 {[%emt 0:00:31]} Re8 {[%emt 0:01:08]} 42. Rxa5 {[%emt 0:00:23]} f5 {[%emt 0:00:17]} 43. Ra6+ {[%emt 0:02:06]} Kg5 {[%emt 0:00:50]} 44. Rg7+ {[%emt 0:00:12]} Kf4 {[%emt 0:00:14]} 45. Rf7 {[%emt 0:00:08]} Ne7 {[%emt 0:00:12]} 46. Re6 {[%emt 0:00:38] Weighted Error Value: White=0.08 (flawless) /Black=0.43.  Loses game:     	---       	Black=1      Inaccurate:     	White=1     	Black=2      OK:         	White=12    	Black=6      Best:        	White=1     	---        Strong:       	White=1     	---} 1-0

[Event "MCC Labor Day Schev 2024"]
[Site "New York"]
[Date "2024.09.01"]
[Round "6.5"]
[White "Sarkar, Justin"]
[Black "Stern, Kevin B"]
[Result "1-0"]
[ECO "D37"]
[WhiteElo "2276"]
[BlackElo "1920"]
[Annotator "TA"]
[PlyCount "75"]
[EventDate "2024.08.28"]
[EventType "schev"]
[EventCountry "USA"]
[SourceTitle "playchess.com"]
[Source "ChessBase"]
[SourceQuality "1"]
[TimeControl "5400+30"]

{[%evp 9,75,14,16,5,35,29,87,92,117,86,85,85,77,85,81,87,88,86,158,129,216,212,220,218,241,244,257,247,235,239,227,175,176,168,169,175,202,204,221,218,231,212,272,244,227,203,375,249,479,489,673,584,698,697,1218,1083,1526,854,1345,1220,1687,1266,2011,1635,1764,1691,29997,-681]} 1. c4 {[%emt 0:00:14]} e6 {[%emt 0:00:05]} 2. Nf3 {[%emt 0:00:21]} d5 {[%emt 0:00:07]} 3. d4 {[%emt 0:00:44]} Nf6 {[%emt 0:00:06]} 4. Nc3 {[%emt 0:00:46]} a6 {[%emt 0:00:07]} 5. cxd5 {[%emt 0:00:21]} exd5 {[%emt 0:00:29]} 6. Qb3 {[%emt 0:01:51][%cal Oe2e4]} h6 {[%emt 0:01:59]} 7. e4 {[%emt 0:00:57][%cal Be2e4,Be4e5][%mdl 32]} c6 {[%emt 0:05:25]} (7... Nxe4 $11 8. Qxd5 Nxc3 9. Qxd8+ Kxd8 10. bxc3 Bd6) 8. e5 $16 {[%emt 0:05:01] White is better.} Ne4 {[%emt 0:01:09]} 9. Bd3 {[%emt 0:00:17]} Nxc3 {[%emt 0:01:34]} 10. Qxc3 {[%emt 0:01:26]} Be6 {[%emt 0:04:47]} 11. Be3 {[%emt 0:04:46]} Nd7 {[%emt 0:01:23]} 12. O-O {[%emt 0:09:23]} Rc8 {[%emt 0:04:53]} 13. Rac1 {[%emt 0:06:59]} c5 {[%emt 0:17:15]} (13... a5 $142) 14. dxc5 {[%emt 0:01:15] White is more active.} Nxc5 {[%emt 0:01:30]} (14... Bxc5 $16 15. b4 Bxe3 16. Qxc8 Bxc1 17. Rxc1 Bg4) 15. Nd4 $18 {[%emt 0:01:49]} Nxd3 {[%emt 0:01:42]} 16. Qxd3 {[%emt 0:00:04] [#] Nxe6 would now be deadly.} Rxc1 {[%emt 0:03:39]} 17. Rxc1 {[%emt 0:00:10]} Qd7 {[%emt 0:00:37]} 18. f4 {[%emt 0:07:11] Hoping for f5. Black is weak on the dark squares} g6 {[%emt 0:01:03]} 19. Nxe6 {[%emt 0:00:27]} Qxe6 {[%emt 0:00:14]} 20. Rd1 {[%emt 0:00:29]} Be7 {[%emt 0:03:52]} 21. Qxd5 {[%emt 0:00:22]} Qxd5 {[%emt 0:00:27]} 22. Rxd5 {[%emt 0:00:02][%mdl 4096] Endgame. KRB-KRB} h5 {[%emt 0:01:15][%cal Bh6h5,Bh5h4][%mdl 32]} 23. Kf2 {[%emt 0:00:42]} h4 {[%emt 0:00:49]} 24. Kf3 {[%emt 0:00:57]} Rh5 {[%emt 0:02:36]} 25. Ke4 {[%emt 0:00:28]} Rf5 {[%emt 0:00:42]} 26. Bb6 {[%emt 0:07:13]} Rh5 {[%emt 0:00:56]} 27. a4 {[%emt 0:49:45]} Rf5 $2 {[%emt 0:00:42]} (27... f5+ 28. exf6 Bxf6) 28. Rd4 {[%emt 0:00:00] [#] Strongly threatening Rc4.} Rh5 $2 {[%emt 0:02:25]} (28... f6 {keeps fighting.} 29. Rc4 fxe5 30. fxe5 Kd7) 29. Rc4 {[%emt 0:00:00]} Rh7 {[%emt 0:02:30]} 30. Rc7 {[%emt 0:00:00]} Bb4 {[%emt 0:00:38]} 31. Kd5 {[%emt 0:00:00]} (31. Rxb7 $2 {loses.} f5+ 32. exf6 Rxb7 $19) 31... h3 {[%emt 0:00:18]} 32. g3 {[%emt 0:00:00]} (32. Rxb7 hxg2 33. Bg1 Ba5 $16) 32... Be1 {[%emt 0:00:12]} 33. Rc1 {[%emt 0:00:00]} Bd2 {[%emt 0:01:45]} 34. Rc8+ {[%emt 0:00:00]} Kd7 {[%emt 0:00:16]} 35. Rb8 {[%emt 0:00:00]} Be1 {[%emt 0:00:40]} 36. Rxb7+ {[%emt 0:00:00]} Ke8 {[%emt 0:00:03]} 37. Bc5 {[%emt 0:00:00] Threatening mate with Kd6.} Kd8 {[%emt 0:03:25]} 38. Ke4 $4 {[%emt 0:05:30][%mdl 40960] Weighted Error Value: White=0.14 (very precise) /Black=0.68.  Mistake:       	---       	Black=5      Inaccurate:     	White=1     	Black=3      OK:         	White=12    	Black=6      Best:        	White=2     	Black=1     . Sensor Board Error (Ke4/e5)?} (38. Kc6 {and life is good for White.} Kc8 39. Bd6 Rh8 40. Rb8#) 1-0

[Event "MCC Labor Day Schev 2024"]
[Site "New York"]
[Date "2024.09.01"]
[Round "6.6"]
[White "Shangin, Lev"]
[Black "Zaderman, Vitaly"]
[Result "0-1"]
[ECO "E92"]
[WhiteElo "1974"]
[BlackElo "2093"]
[Annotator "TA"]
[PlyCount "52"]
[EventDate "2024.08.28"]
[EventType "schev"]
[EventCountry "USA"]
[SourceTitle "playchess.com"]
[Source "ChessBase"]
[SourceQuality "1"]
[TimeControl "5400+30"]

{[%evp 13,52,43,81,77,79,85,98,94,90,-150,-156,-154,-150,-155,-141,-161,-167,-166,-124,-168,-164,-175,-121,-246,-222,-363,-344,-517,-510,-592,-537,-514,-443,-794,-790,-858,-857,-29978,-5623,-29993,-29994]} 1. d4 {[%emt 0:00:01]} Nf6 {[%emt 0:09:36]} 2. c4 {[%emt 0:00:10]} g6 {[%emt 0:00:06]} 3. Nc3 {[%emt 0:00:11]} Bg7 {[%emt 0:00:10]} 4. e4 {[%emt 0:00:35]} d6 {[%emt 0:00:08]} 5. Nf3 {[%emt 0:00:30]} O-O {[%emt 0:00:07]} 6. Be2 {[%emt 0:00:44]} c5 {[%emt 0:00:11]} 7. d5 {[%emt 0:02:41]} e5 {[%emt 0:00:26]} 8. Be3 {[%emt 0:01:02]} Na6 {[%emt 0:00:14]} 9. Nd2 {[%emt 0:00:44]} Nc7 {[%emt 0:00:16]} 10. g4 {[%emt 0:06:01] White is better.} a6 {[%emt 0:00:12]} 11. Qc2 $2 {[%emt 0:01:22]} (11. a4 $16 {stays on course.}) 11... Nxg4 $17 {[%emt 0:00:30]} 12. Bxg4 {[%emt 0:02:24]} Bxg4 {[%emt 0:00:11]} 13. f3 {[%emt 0:01:42]} Bd7 {[%emt 0:00:17]} 14. O-O-O {[%emt 0:01:08]} b5 {[%emt 0:00:15]} 15. Rdg1 {[%emt 0:01:16]} bxc4 {[%emt 0:01:27]} 16. Nxc4 {[%emt 0:01:54]} Nb5 {[%emt 0:00:42]} 17. h4 {[%emt 0:05:01]} Nd4 {[%emt 0:00:29]} (17... h5 $19 18. Qd3 Qc7) 18. Qg2 {[%emt 0:00:21] White does not recover from this.} (18. Qd3 $17 {was worth a try.}) 18... Bb5 $19 {[%emt 0:03:09]} 19. h5 {[%emt 0:18:50]} (19. Qf1 {was called for.}) 19... Bxc4 {[%emt 0:02:12]} 20. Qh3 {[%emt 0:01:24]} (20. hxg6 $142 fxg6 21. Rxh7) 20... Qc8 {[%emt 0:00:38]} 21. Rg4 {[%emt 0:00:43] [#] Hoping for hxg6.} h6 {[%emt 0:06:39] White must now prevent ...g5.} ({Not} 21... Bxa2 $2 22. hxg6 h6 23. Bxh6 $18) 22. hxg6 {[%emt 0:03:41]} fxg6 {[%emt 0:00:19]} 23. Bxh6 {[%emt 0:00:57]} (23. Rxg6 $142 Qxh3 (23... Rxf3 24. Rxg7+ Kxg7 25. Qxh6+ Kf7 26. Qh5+ Ke7 27. Qg5+ Ke8 28. Rh8+ Rf8 29. Qg6+ Ke7 30. Rh7+ Kd8 31. Qxd6+ Ke8 32. Re7#) 24. Rxh3) 23... Rxf3 {[%emt 0:11:18]} 24. Qg2 {[%emt 0:00:37] [#]} Bf1 $1 {[%emt 0:05:56]} 25. Rxf1 {[%emt 0:03:20]} (25. Qxf3 Nxf3) 25... Rxf1+ {[%emt 0:05:07]} 26. Nd1 {[%emt 0:00:21]} Bxh6+ {[%emt 0:00:20] Weighted Error Value: White=1.40/Black=0.14 (very precise) .  Mistake:       	White=5     	Black=1      Inaccurate:     	White=1     	---        OK:         	White=3     	Black=4      Best:        	---       	Black=3} 0-1

[Event "MCC Labor Day Schev 2024"]
[Site "New York"]
[Date "2024.09.01"]
[Round "6.7"]
[White "Mottola, Max"]
[Black "Nasta, Kiren Vivek"]
[Result "0-1"]
[ECO "C26"]
[WhiteElo "2103"]
[BlackElo "2148"]
[Annotator "TA"]
[PlyCount "128"]
[EventDate "2024.08.28"]
[EventType "schev"]
[EventCountry "USA"]
[SourceTitle "playchess.com"]
[Source "ChessBase"]
[SourceQuality "1"]
[TimeControl "5400+30"]

{[%evp 9,128,-27,25,-3,6,6,11,-2,37,37,72,96,96,93,96,89,112,96,104,38,64,-16,0,-22,-29,-41,-32,-39,-23,-91,-97,-86,-78,-170,-62,-88,-79,-67,-65,-139,-124,-117,-90,-76,0,-31,-40,-89,-96,-90,-92,-87,-92,-74,-8,-11,-6,-3,0,-6,-8,-2,-8,-8,-4,-8,-6,-110,-122,-115,-121,-208,-205,-329,-332,-359,-360,-409,-409,-401,-384,-409,-378,-381,-387,-401,-397,-440,-433,-583,-580,-560,-554,-29971,-29972,-29973,-29974,-29974,-29975,-29976,-29977,-29977,-29976,-29976,-29977,-29976,-29973,-29975,-29976,-29984,-29985,-29985,-29986,-29986,-29987,-29987,-29988,-29988,-29989,-29989,-29990]} 1. e4 {[%emt 0:04:27]} e5 {[%emt 0:00:02]} 2. Nc3 {[%emt 0:00:14]} Nf6 {[%emt 0:00:04]} 3. d4 {[%emt 0:00:06]} exd4 {[%emt 0:00:10]} 4. Qxd4 {[%emt 0:00:04]} Nc6 {[%emt 0:00:11]} 5. Qd3 {[%emt 0:00:06]} Bb4 {[%emt 0:00:49]} (5... Bc5 $142) 6. Bd2 {[%emt 0:00:21]} O-O {[%emt 0:00:23]} 7. O-O-O {[%emt 0:00:36]} Re8 {[%emt 0:00:51]} 8. Nge2 {[%emt 0:00:30] The position is equal.} d6 {[%emt 0:09:03]} 9. Bg5 {[%emt 0:00:35]} Be6 {[%emt 0:09:08]} 10. f4 {[%emt 0:16:26]} h6 {[%emt 0:05:32]} 11. Bh4 {[%emt 0:02:25] Black must now prevent Nd5.} g5 {[%emt 0:00:17]} 12. Be1 {[%emt 0:16:52]} Bg4 {[%emt 0:07:04]} 13. fxg5 {[%emt 0:17:39]} hxg5 {[%emt 0:01:20]} 14. Qg3 {[%emt 0:04:27]} (14. Qe3 $16 Re5 15. h3) 14... Ne5 {[%emt 0:03:23]} 15. h4 {[%emt 0:09:54]} (15. h3 $14 Bxc3 16. Qxc3 Nxe4 17. Qb4 Bxe2 18. Bxe2) 15... Nh5 $36 {[%emt 0:04:16][%mdl 2048] White is under pressure.} 16. Qe3 {[%emt 0:02:49]} Bc5 {[%emt 0:05:19]} 17. Qxg5+ {[%emt 0:03:25]} Qxg5+ {[%emt 0:00:06]} 18. hxg5 {[%emt 0:00:07]} c6 {[%emt 0:04:39] Inhibits Nd5.} 19. Na4 {[%emt 0:02:34]} (19. b3 $11) 19... Be3+ $17 {[%emt 0:00:30]} 20. Kb1 {[%emt 0:02:12]} Bxg5 {[%emt 0:02:24]} 21. Bh4 {[%emt 0:01:24]} (21. b3 $17) 21... Be3 {[%emt 0:01:12]} ({Better is} 21... Bxh4 $19 22. Rxh4 Nf6) 22. b3 {[%emt 0:02:06]} b5 {[%emt 0:03:16]} 23. Nb2 {[%emt 0:02:55]} Re6 {[%emt 0:03:18] Black has more active pieces.} 24. Nd3 {[%emt 0:03:18] [#]} (24. a4 $15) 24... Ng6 $1 {[%emt 0:02:00][%cal Og6h4]} 25. Nf2 {[%emt 0:02:32]} Bxf2 {[%emt 0:00:51]} 26. Bxf2 {[%emt 0:00:03]} Rxe4 {[%emt 0:01:12]} (26... Nf6 $1 $17 {[%cal Rf6e4]} 27. Rc1 Bxe2 (27... Nxe4 28. Be1 $17) (27... Rxe4 28. Ng3 $11) 28. Bxe2 Nxe4 (28... Rxe4 29. Bf3 $16)) 27. Rd4 {[%emt 0:02:34]} d5 {[%emt 0:09:00]} 28. Nc3 {[%emt 0:01:28]} (28. Kb2 $15 {deserves consideration.}) 28... Rxd4 {[%emt 0:02:21]} 29. Bxd4 {[%emt 0:00:03]} Ng3 {[%emt 0:00:19]} 30. Rg1 {[%emt 0:00:15]} b4 {[%emt 0:08:20]} 31. Na4 {[%emt 0:00:24]} Re8 {[%emt 0:02:55]} (31... Be2 $17 32. Bxe2 Nxe2) 32. Ba6 $11 {[%emt 0:01:12][%cal Od4c5]} Be2 {[%emt 0:03:09]} 33. Re1 {[%emt 0:01:08]} Re4 {[%emt 0:04:00]} 34. Bf2 {[%emt 0:01:46]} Bxa6 {[%emt 0:00:14]} 35. Bxg3 {[%emt 0:00:03]} Rg4 {[%emt 0:01:20]} 36. Bd6 {[%emt 0:00:36]} Rxg2 {[%emt 0:00:21]} 37. Bxb4 {[%emt 0:00:08]} Be2 {[%emt 0:01:46]} 38. Nc5 {[%emt 0:01:13] [#]} (38. Bc5 $11) 38... f5 $1 $17 {[%emt 0:00:52] Black keeps a firm grip on the game.} 39. Ne6 {[%emt 0:00:32]} f4 {[%emt 0:00:46]} 40. Nd4 {[%emt 0:00:28]} (40. Bc5 $17) 40... f3 $19 {[%emt 0:02:08]} 41. Nxe2 {[%emt 0:00:15]} (41. Rc1 $142) 41... fxe2 {[%emt 0:00:05][%mdl 4096] Endgame. KRB-KRN} ({Not} 41... Rxe2 42. Rxe2 fxe2 43. Kc1 $11) 42. Rh1 {[%emt 0:00:37]} Rf2 {[%emt 0:00:36] Strongly threatening ...Rf1+.} 43. Rh6 {[%emt 0:00:38]} Kg7 {[%emt 0:00:24]} 44. Rh3 {[%emt 0:00:25]} Rf1+ {[%emt 0:00:12]} 45. Kb2 {[%emt 0:00:02]} e1=Q {[%emt 0:00:14]} 46. Bxe1 {[%emt 0:00:06]} Rxe1 {[%emt 0:00:03] KRN-KR} 47. Rc3 {[%emt 0:00:14]} Re6 {[%emt 0:00:27]} 48. Rc5 {[%emt 0:00:23]} Kf6 {[%emt 0:00:22]} 49. b4 {[%emt 0:00:49]} Ne5 {[%emt 0:01:20] ...Nc4+ would now be deadly.} 50. b5 {[%emt 0:00:28]} Nd7 {[%emt 0:01:43]} 51. Rxc6 {[%emt 0:00:44]} Rxc6 {[%emt 0:00:04] Black mates.} 52. bxc6 {[%emt 0:00:04] KN-K3P} Nb6 {[%emt 0:00:01]} 53. Kc3 {[%emt 0:00:59]} Ke6 {[%emt 0:01:07]} 54. Kb4 {[%emt 0:00:30]} Kd6 {[%emt 0:00:15]} 55. Kb5 {[%emt 0:00:07]} Nc8 {[%emt 0:00:22]} 56. c7 {[%emt 0:01:30]} Kxc7 {[%emt 0:00:06] KN-KPP} 57. Kc5 {[%emt 0:01:12]} Ne7 {[%emt 0:00:04]} 58. Kb5 {[%emt 0:00:00]} Kd6 {[%emt 0:00:55]} 59. Ka6 {[%emt 0:00:11]} Kc5 {[%emt 0:00:16]} 60. Kxa7 {[%emt 0:00:24]} Nc6+ {[%emt 0:00:00]} 61. Kb7 {[%emt 0:00:18]} Nb4 {[%emt 0:00:01][%csl LRa2,LRc2]} 62. a4 {[%emt 0:00:13]} Nxc2 {[%emt 0:00:05]} 63. a5 {[%emt 0:00:03]} Nb4 {[%emt 0:00:03]} 64. a6 {[%emt 0:00:04] [#]} Nxa6 $1 {[%emt 0:00:04] Weighted Error Value: White=0.34/Black=0.14 (very precise) .  Mistake:       	White=9     	Black=3      Inaccurate:     	White=4     	Black=3      OK:         	White=19    	Black=20     Best:        	White=2     	Black=4      Strong:       	---       	Black=2} 0-1